fUSD/lending_fUSD_20240416
["ID","MTS","AMOUNT","RATE_DAILY","PERIOD"]
[322780893,1713279851245,-150.0,0.00049,120]
[322780894,1713279851269,-2346.71347008,0.00049,120]
[322780895,1713279851290,-58415.34970402,0.00049,120]
[322780896,1713279851313,-4000.0,0.00049,30]
[322780897,1713279851335,-681.2874,0.00049,30]
[322780898,1713279851358,-24756.45892964,0.00049,120]
[322780899,1713279851379,-5420.63975713,0.00049,120]
[322780900,1713279851401,-1092.0,0.00049176,30]
[322780901,1713279851429,-834.13,0.00049178,120]
[322780902,1713279851456,-270.05555556,0.00049205,120]
[322780903,1713279851478,-1028.16265,0.00049262,120]
[322780904,1713279851502,-528.54580015,0.00049315,120]
[322780905,1713279851525,-1000.0,0.00049315,60]
[322780906,1713279851549,-3000.0,0.00049315,120]
[322780907,1713279851572,-151.0,0.00049315,120]
[322780908,1713279851597,-1092.0,0.00049426,30]
[322780909,1713279851743,-834.13,0.00049452,120]
[322780910,1713279851767,-3000.0,0.00049452,120]
[322780911,1713279851791,-238.66885311,0.0004948,120]
[322780912,1713279851816,-252.78865873,0.000495,120]
[322780913,1713279851840,-10000.0,0.000495,120]
[322780914,1713279851865,-3000.0,0.00049589,120]
[322780915,1713279851889,-1092.0,0.00049676,30]
[322780916,1713279851912,-70000.0,0.0004968,120]
[322780917,1713279851936,-70663.7193724,0.0004968,120]
[322780918,1713279851962,-1000.0,0.000497,120]
[322780919,1713279851986,-60959.80661075,0.000497,60]
[322780920,1713279852009,-834.13,0.00049726,120]
[322780921,1713279852032,-3000.0,0.00049726,120]
[322780922,1713279852054,-193.15626231,0.000498,30]
[322780923,1713279852076,-270.05555556,0.00049808,120]
[322780924,1713279852098,-4950.0,0.00049829,117]
[322780925,1713279852121,-3000.0,0.00049863,120]
[322780926,1713279852143,-71700.12086843,0.0004987,120]
[322780927,1713279852166,-405.0,0.00049886,120]
[322780928,1713279852192,-1092.0,0.00049926,30]
[322780929,1713279852215,-1846.85291971,0.00049995,120]
[322780930,1713279852238,-219.56972438,0.00049998,120]
[322780931,1713279852260,-159.25764026,0.00049998,90]
[322780932,1713279852283,-50793.04571135,0.00049999,120]
[322780933,1713279852305,-1000.0,0.00049999,120]
[322780934,1713279852330,-50000.0,0.0005,50]
[322780935,1713279852354,-50000.0,0.0005,40]
[322780936,1713279852377,-29472.67528326,0.0005,30]
[322780937,1713279852405,-1036.45592317,0.0005,120]
[322780938,1713279852429,-2185.22955454,0.0005,120]
[322780939,1713279852456,-342.41465955,0.0005,120]
[322780940,1713279852481,-224.96912898,0.0005,120]
[322780941,1713279852506,-40268.74065775,0.0005,120]
[322780942,1713279852583,860.605731,0.00014249,2]
[322780943,1713279852766,5531.17140306,0.00015,2]
[322780944,1713279852802,299.20238982,0.00014249,2]
[322780945,1713279857340,210.40439846,0.00014248,2]
[322780946,1713279861627,12446.33307063,0.00014249,2]
[322780947,1713279870610,263.30663622,0.00014249,2]
[322780948,1713279873033,900.0,0.00015,2]
[322780949,1713279886928,300.0,0.00015,2]
[322780956,1713279900484,952.97709067,0.00013536,2]
[322780957,1713279918057,474.68483165,0.00013536,2]
[322780958,1713279941955,320.12679218,0.00013536,2]
[322780981,1713280010956,-155.0,0.00015691,2]
[322780982,1713280010977,-538.77745672,0.00015691,2]
[322780983,1713280010997,-719.0,0.00015691,2]
[322780984,1713280011018,-263.53476276,0.00015692,2]
[322780985,1713280011039,-323.68778052,0.00015692,2]
[322780990,1713280018334,20890.31860081,0.00015,2]
[322781002,1713280054595,865.36661426,0.00015,2]
[322781038,1713280133905,343.94233247,0.00015,2]
[322781039,1713280136287,1033.52071841,0.00015,2]
[322781042,1713280137105,360.83177805,0.00015,2]
[322781047,1713280151862,384.45970057,0.00015,2]
[322781050,1713280157064,194.6624309,0.00015,2]
[322781093,1713280210784,-155.0,0.00015672,2]
[322781094,1713280210810,-194.21401127,0.00015672,2]
[322781095,1713280210837,-397.54543825,0.00015672,2]
[322781096,1713280210864,-174.20968683,0.00015672,2]
[322781097,1713280210890,-1610.05557233,0.00015672,2]
[322781098,1713280210939,-2531.02470868,0.00015672,2]
[322781099,1713280210976,-1008.09199602,0.00015672,2]
[322781100,1713280211012,-2531.02470868,0.00015672,2]
[322781101,1713280211056,-2531.02470868,0.00015672,2]
[322781102,1713280211099,-345.89011715,0.00015672,2]
[322781103,1713280211127,-2185.13459153,0.00015673,2]
[322781104,1713280211159,-28.22174923,0.00015673,2]
[322781105,1713280211188,-202.14216056,0.00015674,2]
[322781106,1713280211219,-210.40439846,0.00015674,2]
[322781107,1713280211246,-155.0,0.00015674,2]
[322781108,1713280211272,-215.83533507,0.00015675,2]
[322781109,1713280211299,-206.58067462,0.00015677,2]
[322781110,1713280211327,-705.82181173,0.00015677,2]
[322781111,1713280211354,-807.01857901,0.00015681,2]
[322781112,1713280211398,-2531.02470868,0.00015681,2]
[322781137,1713280232284,-405.34533627,0.00015671,2]
[322781139,1713280232295,-88.02409829,0.00015671,2]
[322781144,1713280232342,-73.33620132,0.00015671,2]
[322781146,1713280232353,-2720.63586018,0.00015681,2]
[322781147,1713280232564,-1330.43118922,0.00015681,2]
[322781148,1713280232578,-2348.0600001,0.00015681,2]
[322781149,1713280232627,-250.0,0.00015681,2]
[322781188,1713280234505,150.0,0.00013111,2]
[322781207,1713280238306,-715.475,0.00015681,2]
[322781214,1713280238362,-12465.87504003,0.00015681,2]
[322781216,1713280238473,-161.87803042,0.00015681,2]
[322781217,1713280238483,-980.53836679,0.00015685,2]
[322781218,1713280238492,-150.0,0.00015685,2]
[322781219,1713280238502,-150.0,0.00015685,2]
[322781220,1713280238512,-160.72349289,0.000157,2]
[322781221,1713280238523,-499.99,0.00015706,2]
[322781222,1713280238535,-4091.4095,0.00015708,2]
[322781223,1713280238545,-3182.37661948,0.00015803,2]
[322781224,1713280238554,-6143.61916799,0.00016388,2]
[322781225,1713280238584,-3055.35126391,0.00016388,2]
[322781226,1713280238595,-3498.1,0.00016388,2]
[322781227,1713280238607,-3737.77075939,0.00016388,2]
[322781228,1713280238640,-3232.59791078,0.00016388,2]
[322781233,1713280241303,-455.55999999,0.00016388,2]
[322781234,1713280241315,-318.2530643,0.00016388,2]
[322781235,1713280241326,-1362.17109224,0.00016388,2]
[322781236,1713280241338,-357.99,0.00016388,2]
[322781237,1713280241349,-1738.5867414,0.00016388,2]
[322781238,1713280241359,-250.0,0.000164,3]
[322781239,1713280241368,-160.72349285,0.00016472,2]
[322781240,1713280241378,-480.0,0.0001658,2]
[322781241,1713280241387,-536.0,0.00017028,2]
[322781242,1713280241397,-186.78,0.00017082,2]
[322781243,1713280241407,-1633.3687457,0.00017098,5]
[322781244,1713280241424,-271.37932946,0.00017098,5]
[322781268,1713280244406,-284.57807356,0.00017098,5]
[322781269,1713280244421,-5629.85204041,0.00017098,5]
[322781270,1713280244433,-9233.95234434,0.00017098,5]
[322781271,1713280244442,-229.41,0.00017115,2]
[322781272,1713280244451,-150.7,0.00017148,2]
[322781273,1713280244461,-184.34,0.00017148,2]
[322781274,1713280244471,-184.34,0.00017152,2]
[322781275,1713280244485,-184.34,0.00017157,2]
[322781276,1713280244494,-184.34,0.00017161,2]
[322781277,1713280244503,-184.34,0.00017166,2]
[322781278,1713280244512,-184.34,0.00017171,2]
[322781279,1713280244522,-184.34,0.00017175,2]
[322781280,1713280244532,-184.34,0.0001718,2]
[322781281,1713280244542,-184.34,0.00017184,2]
[322781282,1713280244551,-520.0,0.00017187,2]
[322781283,1713280244560,-184.34,0.00017189,2]
[322781284,1713280244570,-184.34,0.00017193,2]
[322781285,1713280244579,-184.34,0.00017198,2]
[322781286,1713280244588,-184.34,0.00017202,2]
[322781287,1713280244597,-184.34,0.00017207,2]
[322781288,1713280244607,-184.34,0.00017211,2]
[322781289,1713280244617,-184.34,0.00017216,2]
[322781290,1713280244626,-184.34,0.0001722,2]
[322781291,1713280244636,-184.34,0.00017225,2]
[322781292,1713280244646,-184.34,0.00017229,2]
[322781293,1713280244655,-184.34,0.00017234,2]
[322781294,1713280244664,-179.67,0.00017243,2]
[322781295,1713280244674,-160.72349285,0.00017244,2]
[322781296,1713280244683,-1000.0,0.00017293,2]
[322781297,1713280244693,-1254.0,0.00017354,2]
[322781298,1713280244704,-807.0,0.00017354,2]
[322781299,1713280244713,-278.0,0.00017354,2]
[322781300,1713280244723,-436.0,0.00017354,2]
[322781301,1713280244739,-1949.0,0.00017354,2]
[322781302,1713280244749,-609.0,0.00017354,2]
[322781303,1713280244758,-1472.0,0.00017354,2]
[322781304,1713280244768,-399.0,0.00017354,2]
[322781305,1713280244777,-150.0,0.00017354,2]
[322781306,1713280244786,-3078.0,0.00017354,2]
[322781307,1713280244796,-2442.0,0.00017354,2]
[322781308,1713280244806,-214.0,0.00017354,2]
[322781309,1713280244815,-1638.0,0.00017354,2]
[322781310,1713280244825,-150.0,0.00017354,2]
[322781311,1713280244834,-443.0,0.00017354,2]
[322781312,1713280244844,-355.0,0.00017354,2]
[322781313,1713280244853,-155.0,0.00017383,2]
[322781314,1713280244863,-440.91336033,0.00017402,2]
[322781315,1713280244872,-206.58067462,0.00017403,2]
[322781316,1713280244882,-10550.0652018,0.00017403,2]
[322781317,1713280244891,-2213.35634076,0.00017403,2]
[322781318,1713280244901,-5887.0,0.00017404,2]
[322781319,1713280244911,-5723.0,0.00017404,2]
[322781320,1713280244920,-37645.0,0.00017404,2]
[322781321,1713280244929,-2703.0,0.00017404,2]
[322781322,1713280244939,-1054.0,0.00017404,2]
[322781323,1713280244948,-267.982,0.00017445,2]
[322781324,1713280244958,-424.13,0.00017461,2]
[322781325,1713280244967,-1220.67551642,0.000175,2]
[322781326,1713280244980,-179.67,0.00017543,2]
[322781327,1713280244989,-153.31,0.00017549,2]
[322781328,1713280244999,-47666.19220938,0.00017624,2]
[322781329,1713280245009,-151.0,0.00017634,2]
[322781330,1713280245018,-150.0,0.00017634,2]
[322781331,1713280245028,-150.0,0.00017634,2]
[322781332,1713280245038,-150.0,0.00017634,2]
[322781333,1713280245047,-150.0,0.00017634,2]
[322781334,1713280245057,-150.0,0.00017634,2]
[322781335,1713280245066,-150.0,0.00017634,2]
[322781336,1713280245075,-150.0,0.00017634,2]
[322781337,1713280245085,-150.0,0.00017634,2]
[322781338,1713280245095,-150.0,0.00017634,2]
[322781339,1713280245106,-2292.0,0.00017634,2]
[322781340,1713280245115,-461.0,0.00017634,2]
[322781342,1713280245124,-968.0,0.00017634,2]
[322781343,1713280245133,-1392.0,0.00017634,2]
[322781344,1713280245143,-1228.0,0.00017634,2]
[322781345,1713280245153,-541.0,0.00017634,2]
[322781346,1713280245162,-500.0,0.000178,2]
[322781347,1713280245172,-169.97,0.00017823,2]
[322781348,1713280245181,-179.67,0.00017842,2]
[322781349,1713280245190,-2272.70992076,0.0001788,2]
[322781350,1713280245199,-2272.70992072,0.0001788,2]
[322781351,1713280245208,-3915.91953324,0.0001788,2]
[322781352,1713280245217,-3915.91953323,0.0001788,2]
[322781353,1713280245230,-623.56712626,0.00018,3]
[322781354,1713280245240,-155.0,0.00018015,2]
[322781355,1713280245250,-160.72349285,0.00018016,2]
[322781356,1713280245260,-2272.70992072,0.0001806,2]
[322781357,1713280245269,-3915.91953323,0.0001806,2]
[322781359,1713280245278,-3551.21222238,0.00018082,2]
[322781360,1713280245287,-530.0,0.00018083,2]
[322781361,1713280245297,-637.0,0.00018083,2]
[322781362,1713280245306,-179.67,0.00018142,2]
[322781363,1713280245315,-2272.70992072,0.00018323,2]
[322781364,1713280245324,-3915.91953323,0.00018323,2]
[322781365,1713280245373,-150.0,0.00018455,2]
[322781366,1713280245383,-2272.70992072,0.00018586,2]
[322781367,1713280245392,-3908.62127061,0.00018586,2]
[322781368,1713280245405,-7.29826262,0.00018586,2]
[322781369,1713280245414,-262.35602113,0.00018652,2]
[322781370,1713280245423,-480.0,0.00018653,2]
[322781371,1713280245432,-577.81045,0.000187,2]
[322781372,1713280245441,-300.0,0.000187,6]
[322781373,1713280245450,-169.97,0.00018769,2]
[322781374,1713280245459,-413.20732302,0.00018787,2]
[322781375,1713280245468,-133.69337559,0.00018787,2]
[322781376,1713280245496,-391.65000025,0.00018787,2]
[322781377,1713280245521,-112.37532416,0.00018787,2]
[322781378,1713280245533,-160.72349285,0.00018788,2]
[322781379,1713280245542,-347.52118299,0.000188,6]
[322781408,1713280246460,-357.0,0.00016578,2]
[322781410,1713280246469,-405.05353353,0.00017402,2]
[322781412,1713280246480,-252.47881701,0.000188,6]
[322781414,1713280246489,-2272.70992072,0.00018848,2]
[322781416,1713280246498,-3915.91953323,0.00018848,2]
[322781418,1713280246507,-2287.5881322,0.00018867,2]
[322781420,1713280246517,-853.23438065,0.00018875,2]
[322781422,1713280246527,-500.0,0.00018882,2]
[322781424,1713280246539,-500.0,0.00018882,2]
[322781426,1713280246549,-576.08538018,0.00018882,2]
[322781428,1713280246558,-412.63,0.00018883,2]
[322781430,1713280246567,-908.76,0.00018883,2]
[322781432,1713280246578,-908.76,0.00018883,2]
[322781434,1713280246587,-2719.519649,0.00018884,2]
[322781436,1713280246606,-1986.13662589,0.00018884,2]
[322781440,1713280246630,-833.64595407,0.00018884,2]
[322781442,1713280246639,-683.27995213,0.00018884,2]
[322781443,1713280246648,-236.43431949,0.00018884,2]
[322781444,1713280246657,-155.0,0.00018884,2]
[322781445,1713280246666,-1207.80967431,0.00018884,2]
[322781446,1713280246694,-86.25952061,0.00018884,2]
[322781447,1713280246703,-155.0,0.00018884,2]
[322781448,1713280246713,-3378.54108249,0.00018884,2]
[322781449,1713280246723,-287.1965243,0.00018884,2]
[322781450,1713280246733,-208.07835669,0.00018884,2]
[322781451,1713280246742,-263.32795754,0.00018884,2]
[322781452,1713280246751,-155.0,0.00018884,2]
[322781454,1713280246760,-1992.21788626,0.00018885,2]
[322781455,1713280246770,-35210.93038898,0.00018885,2]
[322781456,1713280246779,-524.46201337,0.00018887,2]
[322781457,1713280246789,-500.0,0.00018887,2]
[322781458,1713280246798,-175.60243847,0.00018887,2]
[322781459,1713280246807,-61345.91020758,0.00018888,2]
[322781460,1713280246816,-316.01104962,0.00018899,2]
[322781461,1713280246825,-1480.7390581,0.000189,2]
[322781462,1713280246835,-174.1941933,0.000189,2]
[322781463,1713280246844,-7500.0,0.000189,2]
[322781464,1713280246853,-182.04271184,0.000189,2]
[322781465,1713280246863,-900.0,0.000189,6]
[322781466,1713280246873,-487.27227601,0.000189,2]
[322781467,1713280246882,-530.0,0.00018905,2]
[322781468,1713280246891,-637.0,0.00018905,2]
[322781469,1713280246901,-413.20732302,0.00018946,2]
[322781470,1713280246910,-150.89,0.00018989,2]
[322781471,1713280246919,-150.89,0.00018989,2]
[322781472,1713280246929,-150.89,0.00018989,2]
[322781473,1713280246938,-150.89,0.00018989,2]
[322781474,1713280246948,-150.89,0.00018989,2]
[322781475,1713280246957,-150.89,0.00018989,2]
[322781476,1713280246967,-150.89,0.00018989,2]
[322781477,1713280246976,-150.89,0.00018989,2]
[322781478,1713280246986,-150.89,0.00018989,2]
[322781479,1713280246996,-150.89,0.00018989,2]
[322781480,1713280247005,-150.89,0.00018989,2]
[322781481,1713280247015,-150.89,0.00018989,2]
[322781482,1713280247024,-150.89,0.00018989,2]
[322781483,1713280247033,-150.89,0.00018989,2]
[322781484,1713280247043,-150.89,0.00018989,2]
[322781485,1713280247052,-150.89,0.00018989,2]
[322781486,1713280247061,-150.89,0.00018989,2]
[322781487,1713280247069,-150.89,0.00018989,2]
[322781488,1713280247079,-150.89,0.0001899,2]
[322781489,1713280247088,-150.89,0.0001899,2]
[322781490,1713280247097,-150.89,0.0001899,2]
[322781491,1713280247106,-150.89,0.0001899,2]
[322781492,1713280247115,-150.89,0.0001899,2]
[322781493,1713280247124,-150.89,0.0001899,2]
[322781494,1713280247134,-150.89,0.0001899,2]
[322781495,1713280247143,-150.89,0.0001899,2]
[322781496,1713280247152,-150.89,0.0001899,2]
[322781497,1713280247161,-150.89,0.0001899,2]
[322781498,1713280247171,-150.89,0.0001899,2]
[322781499,1713280247180,-150.89,0.0001899,2]
[322781500,1713280247189,-150.89,0.0001899,2]
[322781501,1713280247198,-150.89,0.0001899,2]
[322781502,1713280247207,-150.89,0.0001899,2]
[322781503,1713280247216,-150.89,0.0001899,2]
[322781504,1713280247225,-150.89,0.0001899,2]
[322781505,1713280247238,-150.89,0.0001899,2]
[322781506,1713280247248,-150.89,0.0001899,2]
[322781507,1713280247257,-150.89,0.0001899,2]
[322781508,1713280247266,-150.89,0.0001899,2]
[322781509,1713280247275,-150.89,0.0001899,2]
[322781510,1713280247284,-150.89,0.0001899,2]
[322781511,1713280247293,-150.89,0.0001899,2]
[322781512,1713280247304,-150.89,0.0001899,2]
[322781513,1713280247313,-150.89,0.0001899,2]
[322781514,1713280247322,-150.89,0.0001899,2]
[322781515,1713280247331,-150.89,0.0001899,2]
[322781516,1713280247340,-150.89,0.0001899,2]
[322781517,1713280247349,-150.89,0.0001899,2]
[322781518,1713280247358,-150.89,0.0001899,2]
[322781519,1713280247367,-150.89,0.0001899,2]
[322781520,1713280247376,-150.89,0.0001899,2]
[322781522,1713280247385,-150.89,0.0001899,2]
[322781523,1713280247394,-150.89,0.0001899,2]
[322781524,1713280247403,-1480.73905802,0.00018991,2]
[322781525,1713280247413,-156.1245568,0.00018997,2]
[322781526,1713280247423,-194.08458397,0.00018997,2]
[322781527,1713280247432,-201.99934208,0.00018997,2]
[322781528,1713280247442,-155.0,0.00018997,2]
[322781529,1713280247451,-174.03453547,0.00018997,2]
[322781530,1713280247460,-210.40439846,0.00018997,2]
[322781531,1713280247470,-190.08645592,0.00018997,2]
[322781532,1713280247483,-215.83533507,0.00018997,2]
[322781533,1713280247492,-705.33479439,0.00018997,2]
[322781534,1713280247501,-161.23143493,0.00018997,2]
[322781535,1713280247511,-171.06528897,0.00018998,2]
[322781536,1713280247523,-155.0,0.00018998,2]
[322781537,1713280247533,-458.47065722,0.00018998,2]
[322781538,1713280247542,-155.0,0.00018998,2]
[322781539,1713280247551,-58067.76336266,0.00018999,2]
[322781540,1713280247560,-500.0,0.00018999,2]
[322781541,1713280247570,-309.68349626,0.00018999,2]
[322781542,1713280247579,-500.0,0.00018999,2]
[322781543,1713280247588,-500.0,0.00018999,2]
[322781544,1713280247597,-500.0,0.00018999,2]
[322781545,1713280247606,-276.05802316,0.00018999,2]
[322781546,1713280247616,-33298.13484259,0.00018999,2]
[322781547,1713280247628,-3533.81488528,0.00018999,2]
[322781548,1713280247642,-312.0377,0.00018999,2]
[322781549,1713280247654,-515.48661682,0.00018999,2]
[322781616,1713280454086,407.42,0.00015169,2]
[322781619,1713280632659,1687.0,0.00028308,120]
[322781620,1713280939794,3000.0,0.00027,30]
[322781621,1713281022577,387.04,0.00015232,2]
[322781622,1713281247059,250.0,0.000137,2]
[322781628,1713281431569,-210.40439846,0.00016438,2]
[322781629,1713281431580,-182.12273333,0.00016438,2]
[322781630,1713281431629,-1521.73127245,0.00016438,2]
[322781631,1713281431646,-509.50233498,0.00016438,2]
[322781632,1713281431656,-206.58067462,0.00016439,2]
[322781633,1713281431666,-215.83533507,0.0001644,2]
[322781634,1713281431675,-150.0,0.00016712,2]
[322781635,1713281431686,-250.0,0.00017038,2]
[322781636,1713281431695,-150.0,0.00017096,2]
[322781637,1713281431705,-155.0,0.00017097,2]
[322781638,1713281431715,-181.59835701,0.00017097,2]
[322781639,1713281431724,-1246.08994401,0.00017097,2]
[322781640,1713281431736,-2040.41244433,0.00017097,2]
[322781641,1713281431752,-78.29761166,0.00017097,2]
[322781642,1713281431762,-288.0,0.0001715,2]
[322781643,1713281431771,-1930.5,0.0001715,2]
[322781644,1713281431781,-1268.52283949,0.00017159,2]
[322781645,1713281431801,-308.68743525,0.00017159,2]
[322781646,1713281431813,-933.05972526,0.00017159,2]
[322781647,1713281431823,-2398.25,0.00017159,2]
[322781648,1713281431836,-237.32,0.00017217,2]
[322781649,1713281431845,-370.41,0.00017255,2]
[322781650,1713281431855,-159.89,0.00017288,2]
[322781651,1713281431865,-1037.0,0.000173,2]
[322781652,1713281431874,-159.89,0.0001737,2]
[322781653,1713281431883,-213.53,0.00017385,2]
[322781654,1713281431893,-159.89,0.00017452,2]
[322781655,1713281431903,-387.04,0.00017496,2]
[322781656,1713281431913,-159.89,0.00017534,2]
[322781657,1713281431928,-159.89,0.00017615,2]
[322781658,1713281431938,-159.89,0.00017697,2]
[322781659,1713281431950,-1254.0,0.00017735,2]
[322781660,1713281431961,-1228.0,0.00017735,2]
[322781662,1713281431971,-541.0,0.00017735,2]
[322781664,1713281431981,-609.0,0.00017735,2]
[322781666,1713281431991,-436.0,0.00017735,2]
[322781668,1713281432002,-1949.0,0.00017735,2]
[322781670,1713281432013,-807.0,0.00017735,2]
[322781672,1713281432022,-257.0,0.00017735,2]
[322781673,1713281432032,-150.0,0.00017735,2]
[322781674,1713281432042,-3078.0,0.00017735,2]
[322781675,1713281432052,-2442.0,0.00017735,2]
[322781676,1713281432062,-399.0,0.00017735,2]
[322781677,1713281432071,-1472.0,0.00017735,2]
[322781678,1713281432081,-798.86864756,0.00017735,2]
[322781679,1713281432097,-839.13135244,0.00017735,2]
[322781680,1713281432107,-214.0,0.00017735,2]
[322781681,1713281432117,-150.0,0.00017735,2]
[322781682,1713281432127,-443.0,0.00017735,2]
[322781683,1713281432137,-355.0,0.00017735,2]
[322781684,1713281432146,-1054.0,0.00017735,2]
[322781685,1713281432156,-5723.0,0.00017735,2]
[322781686,1713281432166,-968.0,0.00017735,2]
[322781687,1713281432176,-5887.0,0.00017735,2]
[322781688,1713281432185,-2292.0,0.00017735,2]
[322781689,1713281432195,-1392.0,0.00017735,2]
[322781690,1713281432205,-2703.0,0.00017735,2]
[322781691,1713281432215,-24875.26185459,0.00017735,2]
[322781692,1713281432227,-537.58482089,0.00017735,2]
[322781693,1713281432239,-2112.94978336,0.00017735,2]
[322781694,1713281432251,-6756.98938942,0.00017735,2]
[322781695,1713281432263,-391.4249999,0.00017735,2]
[322781696,1713281432275,-922.10443619,0.00017735,2]
[322781704,1713281437569,-467.672485,0.00017735,2]
[322781705,1713281437631,-694.77848214,0.00017735,2]
[322781706,1713281437678,-886.23374851,0.00017735,2]
[322781707,1713281437688,-461.0,0.00017735,2]
[322781708,1713281437697,-159.89,0.00017779,2]
[322781709,1713281437707,-500.0,0.000178,2]
[322781710,1713281437717,-159.89,0.00017861,2]
[322781711,1713281437726,-908.76,0.00017924,2]
[322781712,1713281437735,-908.76,0.00017924,2]
[322781713,1713281437745,-908.76,0.00017924,2]
[322781714,1713281437755,-908.76,0.00017924,2]
[322781715,1713281437764,-159.89,0.00017943,2]
[322781716,1713281437774,-588.05625177,0.00017997,2]
[322781717,1713281437785,-123.94374823,0.00017997,2]
[322781718,1713281437793,-159.89,0.00018025,2]
[322781719,1713281437803,-534.0,0.00018083,2]
[322781720,1713281437812,-159.89,0.00018107,2]
[322781721,1713281437822,-275.25,0.00018137,2]
[322781722,1713281437832,-159.89,0.00018189,2]
[322781723,1713281437845,-908.76,0.00018341,2]
[322781724,1713281437855,-1000.0,0.00018792,2]
[322781725,1713281437865,-417.390342,0.00018792,2]
[322781726,1713281437874,-1669.49823424,0.000188,2]
[322781727,1713281437887,-964.07834298,0.000188,2]
[322781728,1713281437896,-564.84204,0.0001881,2]
[322781729,1713281437909,-235.82961702,0.00018883,2]
[322781730,1713281437921,-672.93038298,0.00018883,2]
[322781731,1713281437931,-6939.73708902,0.00018899,2]
[322781738,1713281439634,-20.46311098,0.00018899,2]
[322781739,1713281439643,-7500.0,0.00018899,2]
[322781740,1713281439653,-1701.70360722,0.00018899,2]
[322781741,1713281439662,-1198.83531444,0.00018899,2]
[322781742,1713281439671,-182.04271184,0.00018899,2]
[322781743,1713281439681,-275790.26103,0.000189,2]
[322781744,1713281439691,-534.0,0.00018905,2]
[322781745,1713281439700,-2633.57657719,0.00018922,2]
[322781746,1713281439709,-150.9,0.00018989,2]
[322781747,1713281439719,-150.9,0.00018989,2]
[322781748,1713281439728,-150.9,0.00018989,2]
[322781749,1713281439737,-150.9,0.00018989,2]
[322781750,1713281439746,-150.9,0.00018989,2]
[322781751,1713281439755,-150.9,0.00018989,2]
[322781752,1713281439765,-150.9,0.00018989,2]
[322781753,1713281439774,-150.9,0.00018989,2]
[322781754,1713281439783,-150.9,0.00018989,2]
[322781755,1713281439793,-150.9,0.00018989,2]
[322781756,1713281439802,-150.9,0.00018989,2]
[322781757,1713281439811,-226.83544764,0.00018989,2]
[322781758,1713281439821,-1701.70360711,0.0001899,2]
[322781759,1713281439830,-150.9,0.0001899,2]
[322781760,1713281439842,-150.9,0.0001899,2]
[322781761,1713281439851,-150.9,0.0001899,2]
[322781762,1713281439860,-150.9,0.0001899,2]
[322781763,1713281439869,-150.9,0.0001899,2]
[322781764,1713281439879,-150.9,0.0001899,2]
[322781765,1713281439888,-150.9,0.0001899,2]
[322781766,1713281439898,-150.9,0.0001899,2]
[322781767,1713281439910,-150.9,0.0001899,2]
[322781768,1713281439920,-150.9,0.0001899,2]
[322781769,1713281439929,-150.9,0.0001899,2]
[322781770,1713281439938,-150.9,0.0001899,2]
[322781771,1713281439950,-150.9,0.0001899,2]
[322781772,1713281439961,-150.9,0.0001899,2]
[322781773,1713281439971,-150.9,0.0001899,2]
[322781774,1713281439980,-150.9,0.0001899,2]
[322781775,1713281439990,-150.9,0.0001899,2]
[322781776,1713281439999,-150.9,0.0001899,2]
[322781777,1713281440009,-150.9,0.0001899,2]
[322781778,1713281440019,-150.9,0.0001899,2]
[322781779,1713281440030,-150.9,0.0001899,2]
[322781780,1713281440039,-150.9,0.0001899,2]
[322781781,1713281440050,-150.9,0.0001899,2]
[322781782,1713281440061,-226.83544764,0.0001899,2]